bitfinex/quotes_BTCUSD_20241206
["timestamp","ask_amount","ask_price","bid_price","bid_amount"]
[1733443360973,0.10503154,96699.0,96661.0,0.145]
[1733443361599,0.10503154,96699.0,96661.0,0.1459814]
[1733443362075,0.10503154,96699.0,96671.0,0.145]
[1733443362305,0.1081651,96699.0,96662.0,0.0821]
[1733443362530,0.10503154,96696.0,96662.0,0.0821]
[1733443362736,0.10503154,96675.0,96662.0,0.0009981]
[1733443363162,0.10503154,96675.0,96661.0,0.001]
[1733443363369,0.023,96674.0,96661.0,0.001]
[1733443363596,0.023,96674.0,96654.0,0.0466]
[1733443363597,0.10503154,96672.0,96654.0,0.0466]
[1733443363796,0.10503154,96661.0,96647.0,0.0009898]
[1733443364253,0.10503154,96661.0,96634.0,0.0466]
[1733443364427,0.10503154,96661.0,96634.0,0.0570264]
[1733443364692,0.005,96676.0,96634.0,0.0570264]
[1733443364693,0.09184179,96694.0,96650.0,0.145]
[1733443364904,0.10503154,96693.0,96661.0,0.145]
[1733443365105,0.10503154,96693.0,96663.0,0.145]
[1733443365332,0.00305801,96698.0,96663.0,0.10503154]
[1733443365550,0.10503154,96697.0,96673.0,0.145]
[1733443366219,0.10503154,96697.0,96673.0,0.1459968]
[1733443366661,0.10503154,96697.0,96673.0,0.0009968]
[1733443367355,0.10503154,96697.0,96673.0,0.0019968]
[1733443367787,0.10503154,96697.0,96673.0,0.0009968]
[1733443368688,0.10503154,96693.0,96673.0,0.0009968]
[1733443368930,0.10503154,96687.0,96673.0,0.0009968]
[1733443369160,0.10503154,96687.0,96673.0,0.0019968]
[1733443369626,0.10503154,96687.0,96673.0,0.0029968]
[1733443369838,0.10503154,96683.0,96673.0,0.0029968]
[1733443370052,0.10503154,96683.0,96673.0,0.0019968]
[1733443370267,0.10503154,96683.0,96673.0,0.0029968]
[1733443370724,0.10503154,96683.0,96673.0,0.0009968]
[1733443370923,0.10503154,96683.0,96673.0,0.0019968]
[1733443371137,0.10503154,96683.0,96673.0,0.001]
[1733443372259,0.10503154,96683.0,96664.0,0.0821]
[1733443372704,0.0017316,96700.0,96664.0,0.0821]
[1733443372705,0.10503154,96678.0,96664.0,0.0821]
[1733443374666,0.10503154,96665.0,96651.0,0.000999]
[1733443374881,0.10503154,96656.0,96651.0,0.000999]
[1733443375113,0.023,96664.0,96634.0,0.0465]
[1733443375114,0.10503154,96652.0,96634.0,0.0465]
[1733443375346,0.10503154,96652.0,96632.0,0.0774]
[1733443375347,0.10503154,96639.0,96632.0,0.0009998]
[1733443375584,0.10503154,96633.0,96632.0,0.0009998]
[1733443375821,0.028,96631.0,96614.0,6e-05]
[1733443376030,0.10503154,96631.0,96614.0,6e-05]
[1733443376246,0.22972721,96661.0,96614.0,6e-05]
[1733443376247,0.09189088,96664.0,96618.0,0.145]
[1733443376480,0.00311436,96651.0,96631.0,0.1239]
[1733443376695,0.10503154,96648.0,96631.0,0.1239]
[1733443376918,0.10503154,96648.0,96614.0,6e-05]
[1733443376919,0.10503154,96638.0,96614.0,6e-05]
[1733443377195,0.10503154,96638.0,96614.0,0.0010584]
[1733443377397,0.10503154,96631.0,96630.0,0.0018658]
[1733443377626,0.12803154,96631.0,96630.0,0.0008658]
[1733443377878,0.028,96629.0,96614.0,0.0010584]
[1733443378118,0.12803154,96615.0,96614.0,0.0010584]
[1733443378567,0.13303154,96615.0,96614.0,6e-05]
[1733443378992,0.028,96614.0,96610.0,1.0153145]
[1733443379208,0.13303154,96611.0,96610.0,0.44716044]
[1733443379663,0.028,96607.0,96595.0,0.0009883]
[1733443379880,0.01845937,96615.0,96516.0,0.0774]
[1733443379881,0.023,96553.0,96516.0,0.0774]
[1733443380115,0.10503154,96541.0,96516.0,0.0774]
[1733443380327,0.12803154,96541.0,96516.0,0.0774]
[1733443380535,0.13303154,96541.0,96514.0,0.0609492]
[1733443380779,0.10503154,96541.0,96514.0,0.0609492]
[1733443381015,0.09189365,96567.0,96527.0,0.145]
[1733443381225,0.10503154,96566.0,96541.0,0.0774]
[1733443381454,0.10503154,96566.0,96542.0,0.0465]
[1733443381884,0.09189365,96608.0,96560.0,0.145]
[1733443382100,0.00304874,96587.0,96562.0,0.145]
[1733443382324,0.10503154,96586.0,96562.0,0.145]
[1733443382558,0.01,96615.0,96574.0,0.145]
[1733443382762,0.10503154,96608.0,96568.0,0.145]
[1733443382965,0.10503154,96604.0,96571.0,0.145]
[1733443384001,0.10503154,96604.0,96576.0,0.145]
[1733443384658,0.00312778,96598.0,96576.0,0.145]
[1733443384890,0.10503154,96597.0,96576.0,0.145]
[1733443385093,0.00313398,96614.0,96591.0,0.145]
[1733443385298,0.10503154,96613.0,96593.0,0.145]
[1733443385523,0.10503154,96613.0,96577.0,0.00103544]
[1733443385524,0.10503154,96613.0,96598.0,0.145]
[1733443386367,0.10503154,96613.0,96592.0,0.1239]
[1733443386368,0.10503154,96613.0,96596.0,0.145]
[1733443387450,0.01,96615.0,96606.0,0.145]
[1733443387667,0.01,96615.0,96592.0,0.1239]
[1733443387668,0.01,96615.0,96614.0,0.145]
[1733443387872,0.01039378,96638.0,96614.0,0.145]
[1733443388086,0.005,96680.0,96629.0,0.145]
[1733443388260,0.10503154,96661.0,96629.0,0.145]
[1733443388858,0.10503154,96661.0,96637.0,0.145]
[1733443389439,0.10503154,96661.0,96643.0,0.145]
[1733443390099,0.10503154,96661.0,96622.0,0.145]
[1733443390309,0.10503154,96659.0,96627.0,0.145]
[1733443390513,0.10503154,96659.0,96632.0,0.145]
[1733443390702,0.10503154,96659.0,96615.0,0.10606644]
[1733443390703,0.10503154,96659.0,96634.0,0.145]
[1733443391095,0.10503154,96659.0,96635.0,0.145]
[1733443391322,0.10503154,96659.0,96640.0,0.145]
[1733443391995,0.10503154,96659.0,96628.0,0.145]
[1733443392149,0.10503154,96659.0,96630.0,0.145]
[1733443392360,0.10503154,96659.0,96628.0,0.145]
[1733443392569,0.10503154,96647.0,96622.0,0.0001]
[1733443392723,0.023,96632.0,96622.0,0.0001]
[1733443393357,0.10503154,96627.0,96622.0,0.0001]
[1733443393594,0.10493154,96627.0,96622.0,0.0001]
[1733443393834,0.10503154,96623.0,96622.0,0.0001]
[1733443393946,0.10503154,96623.0,96589.0,0.0774]
[1733443393947,0.023,96622.0,96589.0,0.0774]
[1733443394175,0.10503154,96610.0,96589.0,0.0774]
[1733443394390,0.10503154,96610.0,96592.0,0.145]
[1733443395013,0.10503154,96610.0,96589.0,0.0774]
[1733443395218,0.10503154,96607.0,96589.0,0.0774]
[1733443395439,0.10503154,96606.0,96589.0,0.0774]
[1733443397664,0.10503154,96597.0,96570.0,0.0804]
[1733443397847,0.10503154,96597.0,96596.0,0.0002]
[1733443399452,0.12803154,96597.0,96596.0,0.0002]
[1733443399671,0.005,96595.0,96552.0,0.0804]
[1733443399881,0.10503154,96572.0,96552.0,0.0804]
[1733443400564,0.12803154,96572.0,96552.0,0.0804]
[1733443400744,0.12803154,96572.0,96540.0,0.0008649]
[1733443400745,0.13831431,96572.0,96542.0,0.01011268]
[1733443401048,0.13831431,96572.0,96540.0,0.0008649]
[1733443401049,0.14331431,96572.0,96540.0,0.0008649]
[1733443401596,0.13831431,96572.0,96540.0,0.0008649]
[1733443402818,0.15524817,96572.0,96540.0,0.0008649]
[1733443403022,0.005,96570.0,96540.0,0.0008649]
[1733443403296,0.12803154,96541.0,96540.0,0.0008649]
[1733443403716,0.10503154,96541.0,96540.0,0.0008649]
[1733443404652,0.01110243,96572.0,96540.0,0.0008649]
[1733443404865,0.10503154,96571.0,96558.0,0.145]
[1733443405104,0.10503154,96571.0,96559.0,0.0484]
[1733443405306,0.10503154,96570.0,96559.0,0.0484]
[1733443405501,0.10503154,96565.0,96541.0,0.0804]
[1733443406182,0.10503154,96542.0,96530.0,0.0008656]
[1733443406430,0.28435048,96551.0,96530.0,0.0008656]
[1733443406431,0.10503154,96531.0,96530.0,0.0008656]
[1733443406841,0.12803154,96531.0,96530.0,0.0008656]
[1733443407249,0.10503154,96531.0,96530.0,0.0008656]
[1733443407892,0.00302618,96542.0,96530.0,0.0008656]
[1733443408092,0.10503154,96541.0,96530.0,0.0008656]
[1733443409460,0.00302618,96542.0,96530.0,0.0008656]
[1733443409653,0.00302618,96542.0,96535.0,0.145]
[1733443409654,0.10503154,96542.0,96535.0,0.145]
[1733443412650,0.10503154,96541.0,96531.0,0.0484]
[1733443413623,0.10503154,96539.0,96530.0,0.0008656]
[1733443413785,0.10503154,96531.0,96514.0,0.0144492]
[1733443413999,0.10503154,96527.0,96514.0,0.0144492]
[1733443414918,0.10503154,96527.0,96514.0,0.0119643]
[1733443415355,0.01013567,96548.0,96521.0,0.145]
[1733443415539,0.10503154,96547.0,96521.0,0.145]
[1733443415742,0.10503154,96547.0,96514.0,0.0119643]
[1733443415743,0.10503154,96547.0,96522.0,0.145]
[1733443416352,0.10503154,96547.0,96528.0,0.145]
[1733443416811,0.10507154,96547.0,96528.0,0.145]
[1733443418286,0.10507154,96547.0,96532.0,0.145]
[1733443419450,0.11507154,96547.0,96532.0,0.145]
[1733443419861,0.10503154,96543.0,96514.0,0.0119643]
[1733443420045,0.10503154,96531.0,96514.0,0.0119643]
[1733443420470,0.10503154,96525.0,96514.0,0.0119643]
[1733443420876,0.005,96543.0,96514.0,0.0119643]
[1733443420877,0.10503154,96523.0,96514.0,0.0119643]
[1733443421797,0.11542467,96523.0,96514.0,0.0119643]
[1733443422947,0.10503154,96516.0,96514.0,0.0119643]
[1733443423158,0.10503154,96515.0,96514.0,0.0119643]
[1733443423360,0.10503154,96515.0,96514.0,0.0118063]
[1733443423361,0.12803154,96515.0,96514.0,0.0118063]
[1733443423564,0.12803154,96515.0,96510.0,0.0008659]
[1733443423565,0.023,96514.0,96510.0,0.0008659]
[1733443423775,0.023,96508.0,96470.0,0.0008659]
[1733443423975,0.10503154,96485.0,96470.0,0.0008659]
[1733443424204,0.10503154,96484.0,96470.0,0.0008659]
[1733443424410,0.12803154,96484.0,96470.0,0.0008659]
[1733443425387,0.023,96483.0,96470.0,0.0008659]
[1733443425596,0.12803154,96471.0,96470.0,0.0008659]
[1733443427626,0.13203154,96471.0,96470.0,0.0008659]
[1733443428464,0.13207154,96471.0,96470.0,0.0008659]
[1733443428833,0.023,96470.0,96430.0,0.0008664]
[1733443429038,0.10503154,96452.0,96430.0,0.0008664]
[1733443429262,0.10503154,96447.0,96430.0,0.0008664]
[1733443429663,0.10503154,96438.0,96430.0,0.0008664]
[1733443429863,0.10503154,96434.0,96430.0,0.0008664]
[1733443430067,0.0441,96459.0,96430.0,0.0008664]
[1733443430068,0.10503154,96431.0,96430.0,0.0008664]
[1733443430273,0.12803154,96431.0,96430.0,0.0008664]
[1733443430645,0.10503154,96431.0,96430.0,0.0008664]
[1733443431179,4e-05,96483.0,96439.0,0.145]
[1733443431378,0.10503154,96466.0,96447.0,0.145]
[1733443432214,4e-05,96483.0,96430.0,0.00190336]
[1733443432215,0.10503154,96458.0,96434.0,0.145]
[1733443433075,0.10503154,96458.0,96442.0,0.145]
[1733443433743,0.10503154,96458.0,96430.0,0.0008664]
[1733443433744,0.10503154,96458.0,96453.0,0.145]
[1733443433946,4e-05,96483.0,96456.0,0.145]
[1733443434067,4e-05,96483.0,96454.0,0.0472]
[1733443434068,0.10503154,96470.0,96463.0,0.145]
[1733443434283,4e-05,96483.0,96470.0,0.145]
[1733443434518,4e-05,96483.0,96471.0,0.0472]
[1733443434715,4e-05,96483.0,96482.0,0.221]
[1733443435106,4e-05,96483.0,96482.0,0.32603154]
[1733443435343,4e-05,96516.0,96508.0,0.145]
[1733443435550,4e-05,96516.0,96482.0,0.22823154]
[1733443435551,0.10503154,96515.0,96483.0,0.10606776]
[1733443436135,0.10503154,96515.0,96483.0,0.00103622]
[1733443436352,0.10503154,96515.0,96483.0,0.00103631]
[1733443436818,0.10503154,96515.0,96482.0,0.1232]
[1733443437003,0.10503154,96511.0,96482.0,0.1232]
[1733443439909,0.10503154,96507.0,96482.0,0.1232]
[1733443440270,0.10503154,96505.0,96482.0,0.1232]
[1733443440483,0.10503154,96502.0,96482.0,0.1232]
[1733443441077,4e-05,96516.0,96482.0,0.1232]
[1733443441296,0.10503154,96515.0,96482.0,0.1232]
[1733443441852,4e-05,96516.0,96482.0,0.1232]
[1733443441853,0.10503154,96506.0,96482.0,0.1232]
[1733443442523,0.10503154,96502.0,96482.0,0.1232]
[1733443442747,0.10503154,96488.0,96470.0,0.0008649]
[1733443442963,0.023,96497.0,96470.0,0.0008649]
[1733443442964,0.10503154,96478.0,96470.0,0.0008649]
[1733443443619,0.023,96505.0,96470.0,0.0008649]
[1733443443620,0.10503154,96473.0,96470.0,0.0008649]
[1733443444557,0.10503154,96473.0,96452.0,0.076]
[1733443444761,0.10503154,96468.0,96441.0,0.0495]
[1733443444974,0.10503154,96458.0,96441.0,0.0495]
[1733443445634,0.10503154,96451.0,96441.0,0.0495]
[1733443446539,0.10503154,96451.0,96436.0,0.082]
[1733443446785,0.10503154,96437.0,96418.0,0.0144492]
[1733443447007,0.09057561,96472.0,96418.0,0.0144492]
[1733443447008,0.10503154,96431.0,96418.0,0.0144492]
[1733443447492,0.10503154,96429.0,96418.0,0.0144492]
[1733443447730,0.10503154,96431.0,96428.0,0.0495]
[1733443447965,0.09057561,96474.0,96428.0,0.1315]
[1733443448186,0.10503154,96468.0,96428.0,0.1315]
[1733443448445,0.10503154,96468.0,96431.0,0.15]
[1733443448679,0.10503154,96468.0,96432.0,0.1060683]
[1733443448900,0.10503154,96468.0,96433.0,0.3045]
[1733443449121,0.10503154,96468.0,96435.0,0.023]
[1733443449343,0.10503154,96468.0,96436.0,0.10606828]
[1733443449581,0.10503154,96468.0,96437.0,0.082]
[1733443449808,4e-05,96516.0,96443.0,0.15]
[1733443450044,0.10503154,96508.0,96456.0,0.105]
[1733443450312,4e-05,96516.0,96457.0,0.0495]
[1733443450313,0.10503154,96506.0,96457.0,0.0495]
[1733443450541,0.10503154,96505.0,96457.0,0.0505365]
[1733443451010,0.11553469,96505.0,96457.0,0.0505365]
[1733443451229,0.10503154,96495.0,96457.0,0.0495]
[1733443451450,0.10503154,96486.0,96457.0,0.0495]
[1733443451908,0.10503154,96486.0,96458.0,0.00103673]
[1733443454855,4e-05,96516.0,96468.0,0.15]
[1733443455067,0.10503154,96515.0,96469.0,0.00103642]
[1733443455284,0.0017292,96510.0,96470.0,0.00103642]
[1733443455517,0.10503154,96509.0,96470.0,0.00103642]
[1733443455737,0.10503154,96507.0,96464.0,0.1247]
[1733443456194,0.10503154,96489.0,96464.0,0.1247]
[1733443456420,0.10503154,96481.0,96464.0,0.1247]
[1733443457970,0.09148777,96504.0,96464.0,0.1247]
[1733443458207,0.05,96505.0,96464.0,0.1247]
[1733443458208,0.10503154,96503.0,96464.0,0.1247]
[1733443458426,0.10503154,96503.0,96465.0,0.10606812]
[1733443458903,0.10503154,96503.0,96467.0,0.15]
[1733443459112,0.10503154,96503.0,96464.0,0.1247]
[1733443459340,0.10503154,96501.0,96464.0,0.1247]
[1733443460192,0.10503154,96501.0,96465.0,0.00103659]
[1733443460410,0.10503154,96501.0,96465.0,0.10606813]
[1733443461247,0.10503154,96501.0,96464.0,0.1247]
[1733443461454,0.10503154,96494.0,96464.0,0.1247]
[1733443461836,0.10503154,96490.0,96464.0,0.1247]
[1733443464094,0.10503154,96489.0,96464.0,0.1247]
[1733443464307,0.10503154,96482.0,96464.0,0.1247]
[1733443464515,0.023,96485.0,96464.0,0.0457]
[1733443464722,0.10503154,96465.0,96448.0,0.079]
[1733443468235,0.19677683,96465.0,96448.0,0.079]
[1733443468443,0.10503154,96465.0,96448.0,0.079]
[1733443470272,0.10503154,96464.0,96448.0,0.079]
[1733443470507,0.09172444,96468.0,96430.0,0.0008653]
[1733443470508,0.10503154,96452.0,96430.0,0.0008653]
[1733443471542,0.10503154,96450.0,96430.0,0.0008653]
[1733443471750,0.10503154,96449.0,96430.0,0.0008653]
[1733443471949,0.10503154,96433.0,96430.0,0.0008653]
[1733443472609,0.12803154,96431.0,96430.0,0.0008653]
[1733443473481,0.10503154,96431.0,96430.0,0.0008653]
[1733443473676,0.12803154,96431.0,96430.0,0.0008653]
[1733443474831,0.10503154,96431.0,96430.0,0.0008653]
[1733443475699,0.13767101,96463.0,96430.0,0.1264653]
[1733443475901,0.10503154,96460.0,96430.0,0.1264653]
[1733443478257,0.13767101,96463.0,96431.0,0.18626848]
[1733443479306,0.10503154,96460.0,96432.0,0.00103687]
[1733443481362,0.15,96511.0,96434.0,0.2756]
[1733443481578,0.10503154,96489.0,96438.0,0.15]
[1733443481815,0.10503154,96489.0,96462.0,0.15]
[1733443482017,0.10503154,96489.0,96463.0,0.00103653]
[1733443482163,0.10503154,96489.0,96464.0,0.00103653]
[1733443482374,0.0017298,96520.0,96465.0,0.1256]
[1733443482552,0.0017298,96520.0,96466.0,0.00103641]
[1733443482753,0.0017298,96520.0,96467.0,0.10503154]
[1733443482961,0.0017298,96520.0,96469.0,0.2756]
[1733443483192,0.0017298,96520.0,96470.0,0.10606788]
[1733443483361,0.0017298,96520.0,96482.0,0.1256]
[1733443483555,0.0017298,96520.0,96441.0,1.02305159]
[1733443483556,0.0017298,96520.0,96497.0,0.15]
[1733443483756,0.0017298,96520.0,96506.0,0.15]
[1733443483999,0.0017298,96520.0,96507.0,0.23166756]
[1733443484220,0.0017298,96520.0,96511.0,0.1256]
[1733443484424,0.0017298,96520.0,96512.0,0.10606744]
[1733443485057,0.01004,96547.0,96513.0,0.15]
[1733443485223,0.01004,96547.0,96477.0,1.02305159]
[1733443485224,0.01004,96547.0,96526.0,0.15]
[1733443485465,0.01004,96547.0,96528.0,0.0454]
[1733443485636,0.01004,96547.0,96529.0,0.00103571]
[1733443485834,0.01004,96547.0,96528.0,0.0454]
[1733443486041,0.01004,96547.0,96530.0,0.00103571]
[1733443487126,0.01004,96547.0,96530.0,0.00103584]
[1733443487327,0.01004,96547.0,96528.0,0.0454]
[1733443487537,0.10475379,96546.0,96528.0,0.0454]
[1733443487973,0.10503154,96540.0,96512.0,0.09197825]
[1733443488177,0.10503154,96529.0,96512.0,0.09197825]
[1733443488405,0.12803154,96528.0,96512.0,0.09197825]
[1733443488610,0.023,96522.0,96512.0,0.09197825]
[1733443488815,0.12803154,96520.0,96512.0,0.09197825]
[1733443489017,0.10503154,96513.0,96512.0,0.09197825]
[1733443489265,0.12803154,96513.0,96512.0,0.09197825]
[1733443489682,0.023,96546.0,96512.0,0.09197825]
[1733443489890,0.10503154,96538.0,96512.0,0.09197825]
[1733443490962,0.10503154,96533.0,96512.0,0.09197825]
[1733443491386,0.023,96532.0,96512.0,0.09197825]
[1733443491606,0.10503154,96531.0,96512.0,0.09197825]
[1733443491816,0.023,96530.0,96512.0,0.09197825]
[1733443492029,0.10503154,96529.0,96503.0,0.14384778]
[1733443492245,0.10503154,96529.0,96496.0,0.01025886]
[1733443492659,0.10503154,96529.0,96483.0,0.15]
[1733443493094,0.023,96523.0,96484.0,0.00103622]
[1733443493306,0.10503154,96513.0,96459.0,0.15]
[1733443493522,0.023,96512.0,96466.0,0.15]
[1733443493730,0.023,96510.0,96467.0,0.0010364]
[1733443493938,0.10503154,96509.0,96467.0,0.0010364]
[1733443494392,0.023,96510.0,96467.0,0.0010364]
[1733443494393,0.023,96501.0,96467.0,0.00103641]
[1733443494601,0.023,96501.0,96424.0,0.40743494]
[1733443494602,0.023,96499.0,96471.0,0.0487]
[1733443494840,0.023,96497.0,96471.0,0.0487]
[1733443495047,0.023,96495.0,96471.0,0.0487]
[1733443495265,0.10503154,96494.0,96471.0,0.0487]
[1733443495682,0.10503154,96490.0,96471.0,0.0487]
[1733443495898,0.023,96489.0,96471.0,0.0487]
[1733443496142,0.023,96487.0,96471.0,0.0487]
[1733443496348,0.10503154,96486.0,96471.0,0.0487]
[1733443496796,0.023,96479.0,96452.0,0.0487]
[1733443497050,0.10503154,96464.0,96430.0,0.0495653]
[1733443497894,0.10503154,96464.0,96431.0,0.00103696]
[1733443499012,0.0801,96520.0,96450.0,0.15]
[1733443499229,0.10503154,96497.0,96452.0,0.0769]
[1733443499436,0.10503154,96497.0,96453.0,0.00103661]
[1733443499665,0.10503154,96494.0,96453.0,0.00103661]
[1733443500090,0.10503154,96484.0,96452.0,0.0769]
[1733443500307,0.10503154,96475.0,96452.0,0.0769]
[1733443505654,0.10503154,96475.0,96453.0,0.023]
[1733443505863,0.01087,96519.0,96454.0,0.00103674]
[1733443506080,0.10503154,96496.0,96454.0,0.00103674]
[1733443506951,0.10503154,96485.0,96453.0,0.023]
[1733443507172,0.10503154,96474.0,96452.0,0.0769]
[1733443507395,0.10503154,96465.0,96434.0,0.0751]
[1733443507869,0.10503154,96465.0,96427.0,0.0076807]
[1733443508237,0.10503154,96451.0,96427.0,0.0076807]
[1733443508443,0.10503154,96444.0,96427.0,0.0076807]
[1733443509830,0.10503154,96441.0,96427.0,0.0076807]
[1733443511078,0.10503154,96441.0,96428.0,0.023]
[1733443512167,0.10503154,96434.0,96427.0,0.0076807]
[1733443512994,0.10413154,96434.0,96427.0,0.0076807]
[1733443513193,0.10413154,96434.0,96428.0,0.023]
[1733443513422,0.15,96481.0,96428.0,0.023]
[1733443513633,0.13708584,96496.0,96432.0,0.1232]
[1733443513634,0.10503154,96460.0,96432.0,0.1232]
[1733443513842,0.10503154,96460.0,96433.0,0.02403681]
[1733443514038,0.10503154,96460.0,96433.0,0.023]
[1733443515991,0.10503154,96448.0,96432.0,0.0481]
[1733443516194,0.10503154,96441.0,96432.0,0.0481]
[1733443516810,0.10503154,96441.0,96427.0,0.0076807]
[1733443517133,0.10503154,96434.0,96427.0,0.0076807]
[1733443517596,0.10503154,96431.0,96427.0,0.0076807]
[1733443519288,0.10503154,96431.0,96400.0,0.07506]
[1733443519289,0.15,96423.0,96400.0,6e-05]
[1733443519492,0.10503154,96419.0,96400.0,6e-05]
[1733443519692,0.10503154,96411.0,96400.0,6e-05]
[1733443520748,0.10503154,96411.0,96410.0,1.0018642]
[1733443522848,0.11103154,96411.0,96410.0,1.0028642]
[1733443523248,0.10503154,96411.0,96410.0,1.0008642]
[1733443525664,0.11103154,96411.0,96410.0,1.0008642]
[1733443526557,0.10503154,96411.0,96410.0,1.0008642]
[1733443526763,0.11553469,96411.0,96410.0,1.0008642]
[1733443526977,0.10503154,96411.0,96410.0,1.0008642]
[1733443530415,0.40503154,96411.0,96410.0,0.48313119]
[1733443530605,0.15,96410.0,96400.0,6e-05]
[1733443530835,0.10503154,96401.0,96400.0,6e-05]
[1733443534126,0.10503154,96401.0,96393.0,0.0088815]
[1733443534359,0.10503154,96394.0,96393.0,0.0088815]
[1733443537262,0.10603154,96394.0,96393.0,0.0088815]
[1733443537669,0.11663469,96394.0,96393.0,0.0088815]
[1733443537880,0.25603154,96394.0,96393.0,0.0088815]
[1733443538103,0.10603154,96394.0,96393.0,0.0088815]
[1733443538307,0.51473154,96394.0,96393.0,0.0088815]
[1733443538527,0.15,96381.0,96380.0,0.0008642]
[1733443538736,0.10503154,96381.0,96380.0,0.0008642]
[1733443539402,0.25503154,96381.0,96380.0,0.0008642]
[1733443539605,0.40503154,96381.0,96380.0,0.0008642]
[1733443540019,0.40803154,96381.0,96380.0,0.0008642]
[1733443540241,0.25503154,96381.0,96380.0,0.0008642]
[1733443540701,0.10503154,96381.0,96380.0,0.0008642]
[1733443541375,0.40503154,96381.0,96380.0,0.0008642]
[1733443541873,0.41003154,96381.0,96380.0,0.0008642]
[1733443542282,0.41003154,96381.0,96353.0,6e-05]
[1733443542283,0.15,96376.0,96353.0,6e-05]
[1733443542487,0.10503154,96354.0,96353.0,6e-05]
[1733443545184,0.10503154,96354.0,96353.0,0.00106]
[1733443545411,0.10503154,96354.0,96353.0,6e-05]
[1733443545862,0.10503154,96354.0,96353.0,0.00206]
[1733443547836,0.10503154,96354.0,96353.0,6e-05]
[1733443548256,0.10503154,96354.0,96353.0,0.00206]
[1733443548491,0.10503154,96354.0,96353.0,6e-05]
[1733443548932,0.10503154,96354.0,96353.0,0.00206]
[1733443549134,0.0912187,96402.0,96353.0,0.02506]
[1733443549339,0.10503154,96382.0,96355.0,0.0499]
[1733443549593,0.10503154,96382.0,96356.0,0.02403768]
[1733443550001,0.0912187,96402.0,96362.0,0.0729]
[1733443550219,0.10503154,96401.0,96367.0,0.023]
[1733443550464,0.0912187,96402.0,96367.0,0.023]
[1733443550465,0.0912187,96402.0,96376.0,0.1323]
[1733443550687,0.0912187,96402.0,96382.0,0.023]
[1733443550947,0.0912187,96402.0,96384.0,0.023]
[1733443551168,0.0912187,96402.0,96385.0,0.00103732]
[1733443551372,0.0912187,96402.0,96384.0,0.023]
[1733443551581,0.0912187,96402.0,96383.0,0.1323]
[1733443551582,0.10503154,96401.0,96383.0,0.1323]
[1733443551799,0.10503154,96398.0,96383.0,0.1323]
[1733443552232,0.0912187,96402.0,96383.0,0.1323]
[1733443552233,0.10503154,96387.0,96383.0,0.1323]
[1733443552640,0.10503154,96387.0,96384.0,0.001]
[1733443553522,0.10503154,96387.0,96383.0,0.1323]
[1733443553739,0.0912187,96402.0,96383.0,0.1323]
[1733443553970,0.10503154,96401.0,96383.0,0.1323]
[1733443554847,0.10503154,96401.0,96383.0,0.1343]
[1733443555055,0.10503154,96401.0,96384.0,0.023]
[1733443556381,0.10507154,96401.0,96384.0,0.023]
[1733443556598,0.10507154,96401.0,96384.0,0.025]
[1733443557806,0.10507154,96401.0,96384.0,0.023]
[1733443558020,0.10507154,96401.0,96384.0,0.025]
[1733443558234,0.10507154,96401.0,96384.0,0.002]
[1733443558432,0.10507154,96401.0,96383.0,0.1323]
[1733443558718,0.10503154,96396.0,96384.0,0.002]
[1733443558873,0.10503154,96396.0,96383.0,0.1323]
[1733443559283,0.10503154,96396.0,96384.0,0.002]
[1733443559636,0.10503154,96396.0,96383.0,0.1323]
[1733443561136,0.10503154,96396.0,96384.0,0.001]
[1733443561468,0.10503154,96392.0,96384.0,0.001]
[1733443562063,0.10503154,96392.0,96383.0,0.1333]
[1733443562064,0.10503154,96392.0,96383.0,0.1323]
[1733443562310,0.10503154,96392.0,96384.0,0.001]
[1733443562755,0.0017288,96400.0,96384.0,0.001]
[1733443562756,0.10503154,96385.0,96384.0,0.001]
[1733443562952,0.10503154,96385.0,96353.0,6e-05]
[1733443563156,0.0914715,96390.0,96353.0,6e-05]
[1733443563157,0.10503154,96366.0,96353.0,6e-05]
[1733443563635,0.10503154,96354.0,96353.0,6e-05]
[1733443565239,0.10503154,96354.0,96353.0,0.00106]
[1733443565455,0.10503154,96354.0,96353.0,6e-05]
[1733443565802,0.10503154,96354.0,96353.0,0.00106]
[1733443566006,0.10503154,96354.0,96353.0,6e-05]
[1733443566205,0.0916296,96371.0,96353.0,6e-05]
[1733443566406,0.10503154,96364.0,96353.0,6e-05]
[1733443566653,0.229074,96390.0,96353.0,6e-05]
[1733443566654,0.10503154,96361.0,96353.0,6e-05]
[1733443567074,4e-05,96354.0,96353.0,6e-05]
[1733443567298,0.10507154,96354.0,96353.0,6e-05]
[1733443567499,0.10507154,96354.0,96353.0,0.00106]
[1733443567703,0.10507154,96354.0,96353.0,6e-05]
[1733443568056,0.10507154,96354.0,96353.0,0.00106]
[1733443568266,0.10507154,96354.0,96353.0,6e-05]
[1733443568699,4e-05,96354.0,96353.0,0.04836]
[1733443568941,4e-05,96354.0,96353.0,0.14546]
[1733443569161,4e-05,96354.0,96353.0,0.14646]
[1733443569370,0.10507154,96354.0,96353.0,0.12346]
[1733443569565,0.10507154,96354.0,96353.0,0.04836]
[1733443569998,4e-05,96354.0,96353.0,0.04836]
[1733443570203,0.0017282,96410.0,96354.0,0.023]
[1733443570410,0.10503154,96391.0,96354.0,0.023]
[1733443570832,0.10503154,96381.0,96353.0,0.12346]
[1733443571046,0.09161395,96395.0,96353.0,0.12346]
[1733443571047,0.10503154,96377.0,96353.0,0.12246]
[1733443571264,0.10503154,96375.0,96353.0,0.12246]
[1733443571473,0.10503154,96375.0,96354.0,0.001]
[1733443571686,0.10503154,96375.0,96353.0,0.12246]
[1733443572123,0.10503154,96369.0,96353.0,0.12346]
[1733443572316,0.10503154,96368.0,96353.0,0.12246]
[1733443572547,0.10503154,96367.0,96353.0,0.12246]
[1733443573015,0.10503154,96367.0,96354.0,0.00103782]
[1733443573447,0.09161395,96390.0,96354.0,0.02403782]
[1733443573668,0.27484185,96408.0,96354.0,0.02403782]
[1733443573669,0.10503154,96387.0,96354.0,0.02403782]
[1733443573890,0.10503154,96368.0,96354.0,0.00103782]
[1733443574095,0.10503154,96355.0,96353.0,6e-05]
[1733443574210,0.10503154,96354.0,96353.0,0.00106]
[1733443574422,0.10503154,96354.0,96353.0,6e-05]